[Event "*** MasterClass Titled Tuesday Blitz"]
[Site "Chess.com"]
[Date "2017.12.05"]
[Round "10"]
[White "abubakrtagelsir"]
[Black "sandager"]
[Result "1-0"]
[WhiteElo "2265"]
[BlackElo "1974"]
[TimeControl "180+2"]
[EndTime "16:26:35 PST"]
[Termination "abubakrtagelsir won by resignation"]

1. e4 {[%clk 0:03:01.4]} 1... e5 {[%clk 0:02:59.1]} 2. Nf3 {[%clk 0:03:01.2]}
2... Nc6 {[%clk 0:02:59.1]} 3. d4 {[%clk 0:03:03.1]} 3... exd4 {[%clk
0:02:59.2]} 4. Bc4 {[%clk 0:03:04.7]} 4... Nf6 {[%clk 0:02:58.8]} 5. O-O {[%clk
0:03:04.7]} 5... Bc5 {[%clk 0:02:53.8]} 6. c3 {[%clk 0:03:02.5]} 6... dxc3
{[%clk 0:02:48.9]} 7. e5 {[%clk 0:03:01.4]} 7... d5 {[%clk 0:02:47.5]} 8. Bb5
{[%clk 0:02:51.1]} 8... Ne4 {[%clk 0:02:42.9]} 9. Nxc3 {[%clk 0:02:49.1]} 9...
Nxc3 {[%clk 0:02:38.2]} 10. bxc3 {[%clk 0:02:49.3]} 10... O-O {[%clk 0:02:39.5]}
11. Bg5 {[%clk 0:02:44.6]} 11... Be7 {[%clk 0:02:24.1]} 12. Bf4 {[%clk
0:02:43.7]} 12... Bg4 {[%clk 0:02:21.9]} 13. Qd3 {[%clk 0:02:38.2]} 13... a6
{[%clk 0:01:52.7]} 14. Bxc6 {[%clk 0:02:37.8]} 14... bxc6 {[%clk 0:01:53.3]} 15.
Nd4 {[%clk 0:02:37.8]} 15... Qd7 {[%clk 0:01:52.6]} 16. Qg3 {[%clk 0:02:37.3]}
16... c5 {[%clk 0:01:37.1]} 17. Nb3 {[%clk 0:02:37.4]} 17... Bf5 {[%clk
0:01:31.6]} 18. Rad1 {[%clk 0:02:36.4]} 18... c6 {[%clk 0:01:20.3]} 19. h4
{[%clk 0:02:32.9]} 19... Kh8 {[%clk 0:01:17.6]} 20. h5 {[%clk 0:02:32.2]} 20...
h6 {[%clk 0:01:15.8]} 21. Rd2 {[%clk 0:02:30.8]} 21... Qd8 {[%clk 0:01:15.4]}
22. Qe3 {[%clk 0:02:26.2]} 22... Qb6 {[%clk 0:01:00.8]} 23. Bxh6 {[%clk
0:02:07.2]} 23... gxh6 {[%clk 0:00:56.3]} 24. Qxh6+ {[%clk 0:02:06.4]} 24... Kg8
{[%clk 0:00:38.6]} 25. Re1 {[%clk 0:02:06.5]} 25... Qd8 {[%clk 0:00:32.8]} 26.
Re3 {[%clk 0:02:05.7]} 26... Bg5 {[%clk 0:00:20.3]} 27. Rg3 {[%clk 0:02:03]}
27... f6 {[%clk 0:00:19.7]} 28. exf6 {[%clk 0:02:01.6]} 28... Qxf6 {[%clk
0:00:07.6]} 29. Rxg5+ {[%clk 0:02:01.6]} 1-0

[Event "*** MasterClass Titled Tuesday Blitz"]
[Site "Chess.com"]
[Date "2017.12.05"]
[Round "10"]
[White "fardinkhan46"]
[Black "chesstrophy1"]
[Result "0-1"]
[WhiteElo "1445"]
[BlackElo "1516"]
[TimeControl "180+2"]
[EndTime "16:27:01 PST"]
[Termination "chesstrophy1 won by checkmate"]

1. e4 {[%clk 0:02:59.3]} 1... e5 {[%clk 0:03:00]} 2. Nc3 {[%clk 0:02:59]} 2...
Nf6 {[%clk 0:02:59.8]} 3. Nf3 {[%clk 0:02:56.1]} 3... Nc6 {[%clk 0:02:59.2]} 4.
Bc4 {[%clk 0:02:51.9]} 4... Bc5 {[%clk 0:02:58.7]} 5. O-O {[%clk 0:02:49.7]}
5... O-O {[%clk 0:02:59.1]} 6. d3 {[%clk 0:02:49.5]} 6... d6 {[%clk 0:02:59.7]}
7. Re1 {[%clk 0:02:48.8]} 7... h6 {[%clk 0:03:00.4]} 8. Be3 {[%clk 0:02:49.2]}
8... Bb6 {[%clk 0:03:00.2]} 9. Bxb6 {[%clk 0:02:49.7]} 9... axb6 {[%clk
0:03:01.6]} 10. Nd5 {[%clk 0:02:50.7]} 10... Nxd5 {[%clk 0:02:58.9]} 11. Bxd5
{[%clk 0:02:52.6]} 11... Bg4 {[%clk 0:02:58.6]} 12. h3 {[%clk 0:02:51]} 12...
Bh5 {[%clk 0:02:58.2]} 13. g4 {[%clk 0:02:51.4]} 13... Bg6 {[%clk 0:02:57.7]}
14. Bxc6 {[%clk 0:02:52.1]} 14... bxc6 {[%clk 0:02:58.3]} 15. h4 {[%clk
0:02:52.3]} 15... Qd7 {[%clk 0:02:53.6]} 16. g5 {[%clk 0:02:52.5]} 16... Bh5
{[%clk 0:02:51.6]} 17. Re3 {[%clk 0:02:46.6]} 17... Qg4+ {[%clk 0:02:48.9]} 18.
Kf1 {[%clk 0:02:44.6]} 18... Qh3+ {[%clk 0:02:48.9]} 19. Ke1 {[%clk 0:02:36.1]}
19... Qh1+ {[%clk 0:02:47.2]} 20. Kd2 {[%clk 0:02:36.8]} 20... Qh3 {[%clk
0:02:29]} 21. gxh6 {[%clk 0:02:33]} 21... gxh6 {[%clk 0:02:25.4]} 22. Qg1+
{[%clk 0:02:31.9]} 22... Kh7 {[%clk 0:02:26.4]} 23. Ng5+ {[%clk 0:02:30.6]}
23... hxg5 {[%clk 0:02:26.4]} 24. Rxh3 {[%clk 0:02:31.5]} 24... Rg8 {[%clk
0:02:17]} 25. hxg5 {[%clk 0:02:31.1]} 25... Kg6 {[%clk 0:02:17.9]} 26. Qh1
{[%clk 0:02:30.8]} 26... Rh8 {[%clk 0:02:17.8]} 27. Rg1 {[%clk 0:02:26.6]} 27...
d5 {[%clk 0:02:18.4]} 28. exd5 {[%clk 0:02:27.1]} 28... cxd5 {[%clk 0:02:19.5]}
29. Ke3 {[%clk 0:02:28.7]} 29... Rxa2 {[%clk 0:02:19.5]} 30. f4 {[%clk
0:02:28.1]} 30... Rxb2 {[%clk 0:02:17.1]} 31. fxe5 {[%clk 0:02:27.8]} 31... Rxc2
{[%clk 0:02:18.2]} 32. Rf1 {[%clk 0:02:27.7]} 32... b5 {[%clk 0:02:18.4]} 33.
Rf6+ {[%clk 0:02:28.6]} 33... Kxg5 {[%clk 0:02:18.2]} 34. Rg3+ {[%clk 0:02:11]}
34... Bg4 {[%clk 0:02:13.6]} 35. Qxh8 {[%clk 0:02:09.9]} 35... Re2+ {[%clk
0:02:13.7]} 36. Kd4 {[%clk 0:02:09.5]} 36... b4 {[%clk 0:02:07.2]} 37. Qg7+
{[%clk 0:02:10]} 37... Kh4 {[%clk 0:02:07.8]} 38. Rh6+ {[%clk 0:02:11.1]} 38...
Kxg3 {[%clk 0:02:08.6]} 39. Rh1 {[%clk 0:02:03.2]} 39... Kf2 {[%clk 0:01:54.4]}
40. Rg1 {[%clk 0:02:01.6]} 40... Bf3 {[%clk 0:01:54.1]} 41. Qg4 {[%clk
0:02:00.4]} 41... Bxg4 {[%clk 0:01:53.9]} 42. Rxg4 {[%clk 0:02:01.2]} 42... b3
{[%clk 0:01:52.9]} 43. Kxd5 {[%clk 0:01:56.4]} 43... b2 {[%clk 0:01:53.8]} 44.
Rb4 {[%clk 0:01:57.7]} 44... Ke3 {[%clk 0:01:52.2]} 45. e6 {[%clk 0:01:54.4]}
45... fxe6+ {[%clk 0:01:52.1]} 46. Kxe6 {[%clk 0:01:56.3]} 46... Kxd3+ {[%clk
0:01:53.1]} 47. Kd7 {[%clk 0:01:58.2]} 47... c5 {[%clk 0:01:52.9]} 48. Rb3+
{[%clk 0:01:55.8]} 48... Kc2 {[%clk 0:01:53]} 49. Rb8 {[%clk 0:01:54.8]} 49...
b1=Q {[%clk 0:01:52.9]} 50. Rxb1 {[%clk 0:01:54.2]} 50... Kxb1 {[%clk
0:01:54.1]} 51. Kd6 {[%clk 0:01:56.1]} 51... c4 {[%clk 0:01:54.9]} 52. Kd5
{[%clk 0:01:57.6]} 52... c3 {[%clk 0:01:56.3]} 53. Kd4 {[%clk 0:01:59.5]} 53...
c2 {[%clk 0:01:56.8]} 54. Kd3 {[%clk 0:02:01.4]} 54... Rh2 {[%clk 0:01:57.8]}
55. Kc3 {[%clk 0:02:02.1]} 55... c1=Q+ {[%clk 0:01:58.4]} 56. Kb3 {[%clk
0:02:04]} 56... Qe3+ {[%clk 0:01:57.3]} 57. Kc4 {[%clk 0:02:04.7]} 57... Rh4+
{[%clk 0:01:58.3]} 58. Kb5 {[%clk 0:02:06]} 58... Qg5+ {[%clk 0:01:58.9]} 59.
Kc6 {[%clk 0:02:07.9]} 59... Rh6+ {[%clk 0:02:00]} 60. Kb7 {[%clk 0:02:09.8]}
60... Qg7+ {[%clk 0:02:01.5]} 61. Kc8 {[%clk 0:02:11.7]} 61... Rh8# {[%clk
0:02:03]} 0-1

[Event "*** MasterClass Titled Tuesday Blitz"]
[Site "Chess.com"]
[Date "2017.12.05"]
[Round "10"]
[White "TheBigBoss04"]
[Black "visa"]
[Result "1-0"]
[WhiteElo "2484"]
[BlackElo "2182"]
[TimeControl "180+2"]
[EndTime "16:27:08 PST"]
[Termination "TheBigBoss04 won by checkmate"]

1. d4 {[%clk 0:02:57.2]} 1... g6 {[%clk 0:02:52.2]} 2. c4 {[%clk 0:02:55.7]}
2... Bg7 {[%clk 0:02:51.7]} 3. e4 {[%clk 0:02:57]} 3... c5 {[%clk 0:02:49]} 4.
d5 {[%clk 0:02:54.4]} 4... d6 {[%clk 0:02:46.6]} 5. Nc3 {[%clk 0:02:55]} 5...
Nf6 {[%clk 0:02:45.8]} 6. h3 {[%clk 0:02:53.9]} 6... O-O {[%clk 0:02:46.7]} 7.
Nf3 {[%clk 0:02:55.4]} 7... e6 {[%clk 0:02:48]} 8. Bd3 {[%clk 0:02:56.8]} 8...
exd5 {[%clk 0:02:49]} 9. cxd5 {[%clk 0:02:58.3]} 9... a6 {[%clk 0:02:40.6]} 10.
a4 {[%clk 0:02:54.7]} 10... Nbd7 {[%clk 0:02:39]} 11. O-O {[%clk 0:02:53.3]}
11... Qe7 {[%clk 0:02:38.9]} 12. Bf4 {[%clk 0:02:40]} 12... Ne8 {[%clk
0:02:34.7]} 13. Qd2 {[%clk 0:02:29.7]} 13... Nc7 {[%clk 0:02:26]} 14. a5 {[%clk
0:02:27.9]} 14... Ne5 {[%clk 0:02:24]} 15. Nxe5 {[%clk 0:02:16.8]} 15... Bxe5
{[%clk 0:02:23.9]} 16. Be3 {[%clk 0:02:18.2]} 16... Rb8 {[%clk 0:02:16.2]} 17.
f4 {[%clk 0:02:16.7]} 17... Bg7 {[%clk 0:02:11.5]} 18. e5 {[%clk 0:02:06.8]}
18... dxe5 {[%clk 0:01:55.2]} 19. Ne4 {[%clk 0:02:06.2]} 19... Nxd5 {[%clk
0:00:58.9]} 20. Bxc5 {[%clk 0:02:04.4]} 20... Qd8 {[%clk 0:00:21.4]} 21. Bxf8
{[%clk 0:02:02.1]} 21... Qxf8 {[%clk 0:00:22.3]} 22. fxe5 {[%clk 0:01:57.6]}
22... Bxe5 {[%clk 0:00:19.4]} 23. Bc4 {[%clk 0:01:58.2]} 23... Nb4 {[%clk
0:00:09.5]} 24. Rxf7 {[%clk 0:01:51.1]} 24... Qxf7 {[%clk 0:00:05]} 25. Bxf7+
{[%clk 0:01:47.4]} 25... Kxf7 {[%clk 0:00:06.9]} 26. Qxb4 {[%clk 0:01:46]} 26...
Bf5 {[%clk 0:00:05.5]} 27. Nd6+ {[%clk 0:01:44.7]} 27... Bxd6 {[%clk 0:00:05.2]}
28. Qxd6 {[%clk 0:01:46.1]} 28... Re8 {[%clk 0:00:06.4]} 29. Rc1 {[%clk
0:01:44.4]} 29... Re7 {[%clk 0:00:07.5]} 30. Rc7 {[%clk 0:01:44.8]} 30... Rxc7
{[%clk 0:00:07.9]} 31. Qxc7+ {[%clk 0:01:46.1]} 31... Kf6 {[%clk 0:00:07.2]} 32.
Qxb7 {[%clk 0:01:45.6]} 32... Bd3 {[%clk 0:00:08.3]} 33. Qb6+ {[%clk 0:01:45.4]}
33... Kg5 {[%clk 0:00:08.3]} 34. Qc5+ {[%clk 0:01:44.7]} 34... Kh4 {[%clk
0:00:09.5]} 35. Qd4+ {[%clk 0:01:45.3]} 35... Kh5 {[%clk 0:00:09.7]} 36. Qxd3
{[%clk 0:01:44]} 36... g5 {[%clk 0:00:11.6]} 37. Qxh7# {[%clk 0:01:44.7]} 1-0

[Event "*** MasterClass Titled Tuesday Blitz"]
[Site "Chess.com"]
[Date "2017.12.05"]
[Round "10"]
[White "Swarnapuri"]
[Black "HarutyunianTigranK"]
[Result "1-0"]
[WhiteElo "2415"]
[BlackElo "2520"]
[TimeControl "180+2"]
[EndTime "16:27:13 PST"]
[Termination "Swarnapuri won by resignation"]

1. d4 {[%clk 0:02:08.8]} 1... Nf6 {[%clk 0:02:59.9]} 2. Bf4 {[%clk 0:02:09.6]}
2... e6 {[%clk 0:02:59]} 3. e3 {[%clk 0:02:11.1]} 3... c5 {[%clk 0:02:58.8]} 4.
Nf3 {[%clk 0:02:12]} 4... b6 {[%clk 0:03:00.1]} 5. Nc3 {[%clk 0:02:13.3]} 5...
cxd4 {[%clk 0:02:58.4]} 6. Nxd4 {[%clk 0:02:10.1]} 6... d6 {[%clk 0:02:48.7]} 7.
Qf3 {[%clk 0:02:05.4]} 7... d5 {[%clk 0:02:47]} 8. Bxb8 {[%clk 0:02:05.1]} 8...
Rxb8 {[%clk 0:02:41.7]} 9. Nc6 {[%clk 0:02:06.3]} 9... Qc7 {[%clk 0:02:42.4]}
10. Nxb8 {[%clk 0:02:07.7]} 10... Qxb8 {[%clk 0:02:44.1]} 11. Bb5+ {[%clk
0:01:58.9]} 11... Bd7 {[%clk 0:02:43.9]} 12. O-O {[%clk 0:01:58]} 12... Bd6
{[%clk 0:02:41.8]} 13. Bxd7+ {[%clk 0:01:56]} 13... Nxd7 {[%clk 0:02:43.7]} 14.
h3 {[%clk 0:01:55.7]} 14... O-O {[%clk 0:02:44.1]} 15. e4 {[%clk 0:01:49.6]}
15... d4 {[%clk 0:02:38.6]} 16. Nb5 {[%clk 0:01:44.2]} 16... Be5 {[%clk
0:02:36.7]} 17. c3 {[%clk 0:01:44.6]} 17... dxc3 {[%clk 0:02:31.7]} 18. Nxc3
{[%clk 0:01:46.5]} 18... Nc5 {[%clk 0:02:29.5]} 19. Rfd1 {[%clk 0:01:46.7]}
19... h6 {[%clk 0:02:26.8]} 20. Qe3 {[%clk 0:01:41]} 20... a5 {[%clk 0:02:26.3]}
21. Rab1 {[%clk 0:01:38.4]} 21... f5 {[%clk 0:02:25.3]} 22. exf5 {[%clk
0:01:38]} 22... Rxf5 {[%clk 0:02:27.2]} 23. Ne4 {[%clk 0:01:33.9]} 23... Bf4
{[%clk 0:02:16.9]} 24. Qd4 {[%clk 0:01:24.8]} 24... Rd5 {[%clk 0:02:17]} 25. Qc4
{[%clk 0:01:23.8]} 25... Qd8 {[%clk 0:02:02.9]} 26. Nc3 {[%clk 0:01:21.9]} 26...
Rxd1+ {[%clk 0:01:48.2]} 27. Rxd1 {[%clk 0:01:23.8]} 27... Qf6 {[%clk
0:01:42.3]} 28. Ne4 {[%clk 0:01:18.3]} 28... Nxe4 {[%clk 0:01:39.8]} 29. Qxe4
{[%clk 0:01:20.2]} 29... Be5 {[%clk 0:01:37.4]} 30. Re1 {[%clk 0:01:20]} 30...
Bxb2 {[%clk 0:01:36.7]} 31. Qxe6+ {[%clk 0:01:20.8]} 31... Qxe6 {[%clk
0:01:37.2]} 32. Rxe6 {[%clk 0:01:22.7]} 32... Bd4 {[%clk 0:01:38.6]} 33. Re7
{[%clk 0:01:19.3]} 33... Bc5 {[%clk 0:01:35.8]} 34. Rb7 {[%clk 0:01:19]} 34...
a4 {[%clk 0:01:36.7]} 35. Kf1 {[%clk 0:01:18.7]} 35... a3 {[%clk 0:01:37.8]} 36.
Ke2 {[%clk 0:01:19.1]} 36... Kh7 {[%clk 0:01:39.7]} 37. f4 {[%clk 0:01:19.3]}
37... Kg6 {[%clk 0:01:40.9]} 38. Kf3 {[%clk 0:01:20.5]} 38... Kf5 {[%clk
0:01:41.5]} 39. g4+ {[%clk 0:01:18.3]} 39... Kf6 {[%clk 0:01:42.2]} 40. h4
{[%clk 0:01:18.7]} 40... g6 {[%clk 0:01:41.7]} 41. Ke4 {[%clk 0:01:16.4]} 41...
Ke6 {[%clk 0:01:36.3]} 42. g5 {[%clk 0:01:13]} 42... hxg5 {[%clk 0:01:34.6]} 43.
hxg5 {[%clk 0:01:14.9]} 43... Kd6 {[%clk 0:01:33.8]} 44. Rg7 {[%clk 0:01:15.4]}
44... Kc6 {[%clk 0:01:35]} 45. Rxg6+ {[%clk 0:01:15.9]} 45... Kb5 {[%clk
0:01:36.9]} 46. Kd3 {[%clk 0:01:15]} 1-0

[Event "*** MasterClass Titled Tuesday Blitz"]
[Site "Chess.com"]
[Date "2017.12.05"]
[Round "10"]
[White "Khamrakulov_Djurabek"]
[Black "JoachimBN"]
[Result "0-1"]
[WhiteElo "2631"]
[BlackElo "2561"]
[TimeControl "180+2"]
[EndTime "16:27:21 PST"]
[Termination "JoachimBN won by resignation"]

1. e4 {[%clk 0:03:01.9]} 1... g6 {[%clk 0:02:54.7]} 2. d4 {[%clk 0:03:02.4]}
2... Bg7 {[%clk 0:02:56.6]} 3. Bc4 {[%clk 0:03:03.5]} 3... c5 {[%clk 0:02:56.5]}
4. dxc5 {[%clk 0:02:56.5]} 4... Qa5+ {[%clk 0:02:55.5]} 5. c3 {[%clk 0:02:57.4]}
5... Qxc5 {[%clk 0:02:56.3]} 6. Na3 {[%clk 0:02:58.4]} 6... a6 {[%clk
0:02:55.1]} 7. Nf3 {[%clk 0:02:56]} 7... d6 {[%clk 0:02:52.5]} 8. Qb3 {[%clk
0:02:45.9]} 8... e6 {[%clk 0:02:45.9]} 9. Be3 {[%clk 0:02:46.8]} 9... Qc7 {[%clk
0:02:40.2]} 10. O-O-O {[%clk 0:02:45.4]} 10... Nd7 {[%clk 0:02:15.4]} 11. Bxe6
{[%clk 0:02:34.8]} 11... Nc5 {[%clk 0:02:00.4]} 12. Bxc5 {[%clk 0:02:27.9]}
12... Bxe6 {[%clk 0:02:01.3]} 13. Bxd6 {[%clk 0:02:13.9]} 13... Bxb3 {[%clk
0:02:01.6]} 14. Bxc7 {[%clk 0:02:14.7]} 14... Bxd1 {[%clk 0:02:02]} 15. Rxd1
{[%clk 0:02:16.3]} 15... Rc8 {[%clk 0:02:00.4]} 16. Ba5 {[%clk 0:02:03.5]} 16...
Nf6 {[%clk 0:01:59.5]} 17. Nd4 {[%clk 0:01:42.6]} 17... Ng4 {[%clk 0:01:47.6]}
18. f3 {[%clk 0:01:39.2]} 18... Nf2 {[%clk 0:01:48.6]} 19. Rd2 {[%clk
0:01:26.8]} 19... Bh6 {[%clk 0:01:49]} 20. Kc2 {[%clk 0:01:28.3]} 20... Bxd2
{[%clk 0:01:46.3]} 21. Kxd2 {[%clk 0:01:29.8]} 21... h5 {[%clk 0:01:32.5]} 22.
Bb4 {[%clk 0:01:23.3]} 22... b6 {[%clk 0:01:29.8]} 23. Nac2 {[%clk 0:01:21]}
23... Kd7 {[%clk 0:01:28.2]} 24. Ke2 {[%clk 0:01:20.5]} 24... Nh1 {[%clk
0:01:16.9]} 25. Kf1 {[%clk 0:01:19]} 25... a5 {[%clk 0:01:15.2]} 26. Ba3 {[%clk
0:01:18.2]} 26... Rce8 {[%clk 0:01:08]} 27. Kg1 {[%clk 0:01:14.3]} 27... f5
{[%clk 0:01:06.9]} 28. exf5 {[%clk 0:01:15.2]} 28... gxf5 {[%clk 0:01:08.8]} 29.
Kxh1 {[%clk 0:01:16.3]} 29... f4 {[%clk 0:01:08.3]} 30. Kg1 {[%clk 0:01:13.1]}
30... h4 {[%clk 0:01:07.1]} 31. h3 {[%clk 0:01:14]} 31... Rh7 {[%clk 0:01:05.7]}
32. Kf2 {[%clk 0:01:12.3]} 32... Rg7 {[%clk 0:01:02.4]} 33. b3 {[%clk
0:01:07.8]} 33... Rg6 {[%clk 0:01:00.7]} 34. Ne2 {[%clk 0:01:02.8]} 34... Rxg2+
{[%clk 0:00:57.2]} 0-1

[Event "*** MasterClass Titled Tuesday Blitz"]
[Site "Chess.com"]
[Date "2017.12.05"]
[Round "10"]
[White "Sulvyfex"]
[Black "ppchess2017"]
[Result "0-1"]
[WhiteElo "1348"]
[BlackElo "1803"]
[TimeControl "180+2"]
[EndTime "16:27:44 PST"]
[Termination "ppchess2017 won by resignation"]

1. d4 {[%clk 0:03:01.4]} 1... d5 {[%clk 0:03:01]} 2. c4 {[%clk 0:03:02.6]} 2...
c5 {[%clk 0:03:00.3]} 3. dxc5 {[%clk 0:03:02.4]} 3... d4 {[%clk 0:02:57.9]} 4.
Nf3 {[%clk 0:03:02]} 4... Nc6 {[%clk 0:02:55.1]} 5. e3 {[%clk 0:03:00.8]} 5...
e5 {[%clk 0:02:53.2]} 6. exd4 {[%clk 0:02:55.3]} 6... exd4 {[%clk 0:02:53.8]} 7.
Bf4 {[%clk 0:02:40]} 7... Bxc5 {[%clk 0:02:52.7]} 8. Nbd2 {[%clk 0:02:41.2]}
8... Bf5 {[%clk 0:02:49.7]} 9. Be2 {[%clk 0:02:39.3]} 9... Nf6 {[%clk
0:02:49.8]} 10. O-O {[%clk 0:02:39.6]} 10... d3 {[%clk 0:02:50.8]} 11. Re1
{[%clk 0:02:28.7]} 11... dxe2 {[%clk 0:02:47.3]} 12. Rxe2+ {[%clk 0:02:30.6]}
12... Be6 {[%clk 0:02:47.4]} 13. Ng5 {[%clk 0:02:30.2]} 13... O-O {[%clk
0:02:47.7]} 14. Nxe6 {[%clk 0:02:30.7]} 14... fxe6 {[%clk 0:02:47.8]} 15. Rxe6
{[%clk 0:02:30.9]} 15... Nd4 {[%clk 0:02:47.3]} 16. Re3 {[%clk 0:02:27.7]} 16...
Nc6 {[%clk 0:02:38.6]} 17. Rc3 {[%clk 0:02:20.7]} 17... h5 {[%clk 0:02:24.9]}
18. a3 {[%clk 0:02:19.5]} 18... Ng4 {[%clk 0:02:25.3]} 19. Ne4 {[%clk
0:02:15.2]} 19... Qxd1+ {[%clk 0:02:15.5]} 20. Rxd1 {[%clk 0:02:17.1]} 20...
Nxf2 {[%clk 0:02:14.1]} 21. Nxf2 {[%clk 0:02:03.5]} 21... Rxf4 {[%clk
0:02:13.3]} 22. Rd2 {[%clk 0:02:04.7]} 22... Re8 {[%clk 0:01:59.7]} 23. Rc1
{[%clk 0:02:02.1]} 23... Ref8 {[%clk 0:01:58]} 24. Rf1 {[%clk 0:01:59.6]} 24...
Rxf2 {[%clk 0:01:33.7]} 25. Rdxf2 {[%clk 0:02:01.5]} 25... Rxf2 {[%clk
0:01:30.8]} 26. Rxf2 {[%clk 0:02:03.4]} 26... Bxf2+ {[%clk 0:01:27.9]} 27. Kxf2
{[%clk 0:02:04.5]} 27... Kf7 {[%clk 0:01:29.1]} 28. b4 {[%clk 0:02:05.9]} 28...
Ke6 {[%clk 0:01:28.6]} 29. Ke3 {[%clk 0:02:07.4]} 29... Ke5 {[%clk 0:01:27.6]}
30. h3 {[%clk 0:02:08]} 30... Nd4 {[%clk 0:01:27.9]} 31. g4 {[%clk 0:02:08.6]}
31... Nc2+ {[%clk 0:01:26.1]} 32. Kd3 {[%clk 0:02:08.1]} 32... Nxa3 {[%clk
0:01:26.5]} 33. Kc3 {[%clk 0:02:07.3]} 33... Nb1+ {[%clk 0:01:25.5]} 34. Kc2
{[%clk 0:02:06.2]} 34... Na3+ {[%clk 0:01:25.6]} 35. Kb3 {[%clk 0:02:07.7]}
35... Nb1 {[%clk 0:01:25.1]} 36. Kc2 {[%clk 0:02:08.6]} 36... Kd4 {[%clk
0:01:22]} 37. Kxb1 {[%clk 0:02:01]} 37... Kxc4 {[%clk 0:01:22.5]} 38. Kc2 {[%clk
0:01:59.5]} 38... Kxb4 {[%clk 0:01:22.7]} 39. gxh5 {[%clk 0:01:56.4]} 39... a5
{[%clk 0:01:22.9]} 40. Kb1 {[%clk 0:01:57.7]} 40... a4 {[%clk 0:01:22.9]} 41. h4
{[%clk 0:01:58.8]} 41... Kc3 {[%clk 0:01:22.6]} 42. Ka2 {[%clk 0:01:59.4]} 42...
b5 {[%clk 0:01:23]} 43. Ka3 {[%clk 0:02:00.8]} 43... b4+ {[%clk 0:01:22.8]} 44.
Ka2 {[%clk 0:02:02.5]} 44... b3+ {[%clk 0:01:22.9]} 45. Kb1 {[%clk 0:02:03.6]}
45... a3 {[%clk 0:01:22.2]} 46. Ka1 {[%clk 0:02:04.8]} 46... Kc2 {[%clk
0:01:15]} 47. h6 {[%clk 0:02:05.9]} 47... gxh6 {[%clk 0:01:14.1]} 48. h5 {[%clk
0:02:06.5]} 48... b2+ {[%clk 0:01:14.5]} 49. Ka2 {[%clk 0:02:08.1]} 49... b1=Q+
{[%clk 0:01:11.6]} 50. Kxa3 {[%clk 0:02:10]} 0-1

[Event "*** MasterClass Titled Tuesday Blitz"]
[Site "Chess.com"]
[Date "2017.12.05"]
[Round "10"]
[White "MRniceplay"]
[Black "Al_Shima"]
[Result "0-1"]
[WhiteElo "2240"]
[BlackElo "2354"]
[TimeControl "180+2"]
[EndTime "16:28:00 PST"]
[Termination "Al_Shima won by resignation"]

1. e4 {[%clk 0:03:01.9]} 1... d5 {[%clk 0:03:00.7]} 2. exd5 {[%clk 0:02:43.9]}
2... Nf6 {[%clk 0:03:01.7]} 3. d4 {[%clk 0:02:40.3]} 3... Nxd5 {[%clk
0:03:02.6]} 4. c4 {[%clk 0:02:36.6]} 4... Nb6 {[%clk 0:03:03.2]} 5. Nc3 {[%clk
0:02:36.3]} 5... e5 {[%clk 0:03:04.3]} 6. d5 {[%clk 0:02:19.4]} 6... Bb4 {[%clk
0:03:04]} 7. a3 {[%clk 0:02:18.9]} 7... Bxc3+ {[%clk 0:03:04.9]} 8. bxc3 {[%clk
0:02:19.6]} 8... c6 {[%clk 0:03:05.9]} 9. d6 {[%clk 0:02:13.4]} 9... c5 {[%clk
0:03:06.8]} 10. a4 {[%clk 0:01:41.2]} 10... O-O {[%clk 0:02:51.1]} 11. a5 {[%clk
0:01:18]} 11... N6d7 {[%clk 0:02:51.6]} 12. Nf3 {[%clk 0:01:17]} 12... a6 {[%clk
0:02:49.5]} 13. Bd3 {[%clk 0:01:05.9]} 13... e4 {[%clk 0:02:45]} 14. Bxe4 {[%clk
0:01:01.9]} 14... Re8 {[%clk 0:02:46]} 15. Qe2 {[%clk 0:00:56.1]} 15... Nf6
{[%clk 0:02:40.9]} 16. Bg5 {[%clk 0:00:55.2]} 16... Bf5 {[%clk 0:02:30.9]} 17.
Bxf5 {[%clk 0:00:47.4]} 17... Rxe2+ {[%clk 0:02:31]} 18. Kxe2 {[%clk 0:00:49.3]}
18... Qxd6 {[%clk 0:02:25.9]} 19. Rhd1 {[%clk 0:00:50.6]} 19... Qe7+ {[%clk
0:02:26.7]} 20. Kf1 {[%clk 0:00:51.6]} 20... Nc6 {[%clk 0:02:25.6]} 21. Re1
{[%clk 0:00:50.7]} 21... Qc7 {[%clk 0:02:14.6]} 22. Bxf6 {[%clk 0:00:49.8]}
22... gxf6 {[%clk 0:02:16.5]} 23. g3 {[%clk 0:00:46.9]} 23... Nxa5 {[%clk
0:02:17]} 24. Re4 {[%clk 0:00:45.6]} 24... Nc6 {[%clk 0:02:12.1]} 25. Rh4 {[%clk
0:00:46.3]} 25... Ne5 {[%clk 0:02:08.7]} 26. Nd2 {[%clk 0:00:37.5]} 26... Ng6
{[%clk 0:02:07.2]} 27. Re4 {[%clk 0:00:32.4]} 27... Rd8 {[%clk 0:02:06.7]} 28.
Nf3 {[%clk 0:00:29.5]} 28... Qd6 {[%clk 0:01:59.5]} 29. Rae1 {[%clk 0:00:29.1]}
29... Qd3+ {[%clk 0:01:59]} 30. Kg2 {[%clk 0:00:30.6]} 30... Qxc3 {[%clk
0:01:59.8]} 31. h4 {[%clk 0:00:30.7]} 31... Kg7 {[%clk 0:01:48.4]} 32. h5 {[%clk
0:00:31.2]} 32... Ne5 {[%clk 0:01:47.1]} 33. Nxe5 {[%clk 0:00:24.1]} 33... fxe5
{[%clk 0:01:49]} 34. Rxe5 {[%clk 0:00:26]} 34... Rd1 {[%clk 0:01:43.8]} 35. Rxd1
{[%clk 0:00:13.1]} 35... Qxe5 {[%clk 0:01:44.3]} 36. Rd5 {[%clk 0:00:15]} 36...
Qc7 {[%clk 0:01:40.1]} 37. f4 {[%clk 0:00:14.1]} 37... b5 {[%clk 0:01:38]} 38.
Kf3 {[%clk 0:00:10.3]} 38... bxc4 {[%clk 0:01:38.4]} 39. g4 {[%clk 0:00:11.2]}
39... c3 {[%clk 0:01:35.5]} 40. g5 {[%clk 0:00:11.7]} 40... Qc6 {[%clk
0:01:35.5]} 41. Be4 {[%clk 0:00:12.4]} 41... Qxd5 {[%clk 0:01:34.7]} 42. h6+
{[%clk 0:00:11.7]} 42... Kf8 {[%clk 0:01:35]} 0-1